Cogmind - Beta 16 @@@ ROGUE MODE // 2025.11.02 @ 15:08:12 // Winter2019/RPGLIKE Player: Rentaro Result: Destroyed by G-47 Trooper with Particle Gun Performance ------------- Evolutions (2) 1000 Regions Visited (3) 600 Robots Destroyed (37) 185 Value Destroyed (749) 749 Prototype IDs (2) 40 Alien Tech Used (0) 0 Bonus (0) 0 TOTAL SCORE: 2574 Bonus ------- None Cogmind --------- Core Integrity 0/800 Matter 235/300 Energy 248/250 System Corruption 0% Temperature Warm (103) Movement Flying (37) Location -8/Materials Parts ------- > --- POWER (1) -------- Ion Engine > --- PROPULSION (3) --- Flight Unit Flight Unit > --- UTILITY (4) ------ Structural Scanner Improved Signal Interpreter Improved Targeting Computer > --- WEAPON (3) ------- Light Assault Rifle Light Assault Rifle > --- INVENTORY (1) ---- (None) Peak State ------------ > --- POWER ------------ Ion Engine > --- PROPULSION ------- Flight Unit Flight Unit Flight Unit > --- UTILITY ---------- Hacking Suite Hacking Suite > --- WEAPON ----------- Assault Rifle Light Assault Rifle Light Assault Rifle > --- INVENTORY -------- Mining Laser [Rating: 13] Favorites ----------- Power Ion Engine Engine Ion Engine Propulsion Flight Unit Treads Light Treads Wheel Wheel Flight Unit Flight Unit Utility Hacking Suite Device Structural Scanner Processor Signal Interpreter Hackware Hacking Suite Weapon Light Assault Rifle Energy Gun Small Laser Ballistic Gun Light Assault Rifle Special Melee Weapon Datajack Build | -11 -10 -9 -8 ------- Run | Yrd Mat Mat Mat Slots Evolved 7 | 4 1 . 2 Power . | . . . . Propulsion 2 | 1 1 . . Utility 3 | 1 . . 2 Weapon 2 | 2 . . . Parts Attached 19 | 6 11 . 2 Power 2 | 1 1 . . Engine 2 | 1 1 . . Core . | . . . . Reactor . | . . . . Propulsion 6 | 2 4 . . Treads 1 | . 1 . . Leg . | . . . . Wheel 2 | 2 . . . Hover . | . . . . Flight 3 | . 3 . . Utility 6 | . 4 . 2 Device 1 | . 1 . . Storage . | . . . . Processor 3 | . 1 . 2 Hackware 2 | . 2 . . Protection . | . . . . Artifact . | . . . . Weapon 5 | 3 2 . . Energy Gun 1 | 1 . . . Energy Cannon . | . . . . Ballistic Gun 3 | 2 1 . . Ballistic Cannon . | . . . . Launcher . | . . . . Special Weapon . | . . . . Impact Weapon . | . . . . Slashing Weapon . | . . . . Piercing Weapon . | . . . . Special Melee Weapon 1 | . 1 . . Unidentified Prototypes . | . . . . Parts Lost 1 | . . . 1 Power . | . . . . Propulsion 1 | . . . 1 Utility . | . . . . Weapon . | . . . . Highest Loss Streak 1 | . . . 1 To Critical Strikes . | . . . . Average Backups . | . . . . Power . | . . . . Propulsion . | . . . . Utility . | . . . . Weapon . | . . . . Tool/Special . | . . . . Unused Backups 1 | . 1 . . Power . | . . . . Propulsion . | . . . . Utility . | . . . . Weapon 1 | . 1 . . Tool/Special . | . . . . Average Slot Usage (%) 85 | . 85 88 82 Engine 11 | . 11 11 9 Wheel 10 | . 13 . . Flight 17 | . 14 33 27 Device 3 | . 1 11 9 Processor 5 | . 3 11 15 Hackware 5 | . 6 . . Ballistic Gun 29 | . 31 22 19 Peak Build Rating 13 | 6 13 8 12 Average Rating 8 | 3 8 8 10 On Entrance 5 | . 6 8 8 Avg Prop Armor Cover (%) . | . . . . Naked Turns . | . . . . Heaviest Build 9 | 9 9 8 8 Greatest Support 25 | 25 25 22 22 Greatest Overweight (x) . | . . . . Average Overweight (x) . | . . . . Largest Inventory Capacity 1 | 1 1 1 1 Average Capacity . | . 1 1 1 Most Carried 1 | . 1 . . Average Carried . | . . . . Final Capacity 1 | 1 1 1 1 Final Carried . | . . . . Class Distribution -------------------- 44% | Gunner 28% | Scavenger-Mutant 20% | Scavenger-Gunner 5% | Scavenger-Scout Dominant Class ---------------- Gunner | -10/Materials Scavenger-Mutant | -9/Materials Scavenger-Scout | -8/Materials Resources | -11 -10 -9 -8 ----------- Run | Yrd Mat Mat Mat Matter Collected 804 | 260 544 . . Remotely . | . . . . Salvage Created 1061 | . 846 70 145 Parts 90 | . 74 3 13 Haulers Intercepted 2 | . 2 . . Recyclers Shooed . | . . . . Parts Field Recycled . | . . . . Retrieved Matter . | . . . . Parts Self-Destructed . | . . . . Prevented . | . . . . Parts Restored . | . . . . Kills | -11 -10 -9 -8 ------- Run | Yrd Mat Mat Mat Combat Hostiles Destroyed 22 | . 16 1 5 Guns 22 | . 16 1 5 Classes Destroyed 9 | . 8 1 . Worker 1 | . 1 . . Builder 6 | . 6 . . Hauler 2 | . 2 . . Recycler 1 | . 1 . . Operator 3 | . 3 . . Watcher 2 | . 2 . . Swarmer 7 | . 3 . 4 Grunt 13 | . 13 . . Sentry 2 | . . 1 1 Best Kill Streak 7 | . 7 1 5 Combat Bots Only 7 | . 7 1 5 Max Kills in Single Turn 2 | . 2 1 1 Gunslinging . | . . . . Exploded . | . . . . Melee . | . . . . Uniques/NPCs Destroyed . | . . . . Combat | -11 -10 -9 -8 -------- Run | Yrd Mat Mat Mat Hostile Shots Fired 189 | . 79 60 50 Missed 78 | . 26 29 23 Hits 111 | . 53 31 27 Projectile 111 | . 53 31 27 Critical Strikes 2 | . 1 1 . Damage Taken 1381 | . 579 427 375 Core 1128 | . 456 359 313 Absorbed by Shields . | . . . . Redirected to Core 808 | . 379 218 211 Regen/Repaired (Parts) 16 | . 16 . . Core Remaining (%) 71 | 100 77 37 . Volleys Fired 109 | . 88 4 17 Largest 3 | . 3 2 2 Hottest 60 | . 60 40 40 Shots Fired 293 | . 251 8 34 Gun 293 | . 251 8 34 Cannon . | . . . . Launcher . | . . . . Special . | . . . . Kinetic 293 | . 251 8 34 Thermal . | . . . . Explosive . | . . . . Electromagnetic . | . . . . Robot Hit Streak 15 | . 15 8 13 Robot Miss Streak 6 | . 6 1 2 Penetration Max . | . . . . Secondary Targets 10 | . 5 . 5 Max Gunslinging Chain 1 | . 1 . 1 Shots Hit Robots 181 | . 149 7 25 Core Hits 75 | . 63 3 9 Critical Kills 2 | . 1 . 1 Critical Parts Destroyed . | . . . . Critical Strikes 2 | . 1 . 1 Destroy 2 | . 1 . 1 Melee Attacks 3 | . 3 . . Impact . | . . . . Slashing . | . . . . Piercing . | . . . . Sneak Attacks 3 | . 3 . . Combat Hostiles . | . . . . Follow-up Attacks . | . . . . Damage Inflicted 1697 | . 1452 48 197 Guns 1697 | . 1452 48 197 Cannons . | . . . . Explosions . | . . . . Melee . | . . . . Ramming . | . . . . Kinetic 1697 | . 1452 48 197 Thermal . | . . . . Explosive . | . . . . Electromagnetic . | . . . . Impact . | . . . . Slashing . | . . . . Piercing . | . . . . Highest Corruption 1 | . 1 1 . Average Corruption 1 | . 1 1 . Corruption Purged . | . . . . Corruption Blocked . | . . . . Effects 9 | . 9 . . Message Errors 1 | . 1 . . Matter Fused 4 | . 4 . . Parts Rejected 1 | . 1 . . Data Loss (minor) 1 | . 1 . . Data Loss (major) 1 | . 1 . . Alerts 1 | . 1 . . Overload Shots . | . . . . Overflow Damage . | . . . . Projectiles . | . . . . Explosions . | . . . . Melee . | . . . . Knockbacks . | . . . . Impact . | . . . . Kinetic . | . . . . Secondary . | . . . . Self-Inflicted Damage . | . . . . Shots . | . . . . Rammed . | . . . . Targets Rammed . | . . . . Kicked . | . . . . Crushed . | . . . . Highest Temperature 226 | . 226 31 117 Average Temperature 46 | . 49 12 54 Received Heat Transfer 702 | . 300 222 180 Siege Activations . | . . . . Martial Activations . | . . . . Shielding Activations . | . . . . Robots Disrupted . | . . . . Combat Hostiles . | . . . . Robots Corrupted . | . . . . Combat Hostiles . | . . . . Parts Fried . | . . . . Impact Corruptions . | . . . . Robots Melted . | . . . . Combat Hostiles . | . . . . Parts Melted . | . . . . Heat Transferred . | . . . . Parts Sabotaged . | . . . . Parts Stolen . | . . . . Parts Stripped . | . . . . Power Chain Reactions . | . . . . Alert | -11 -10 -9 -8 ------- Run | Yrd Mat Mat Mat Maximum Alert Level 1 | . 1 1 1 Low Security (%) 75 | 100 76 56 83 Level 1 24 | . 23 43 16 Level 2 . | . . . . Level 3 . | . . . . Level 4 . | . . . . Level 5 . | . . . . High Security . | . . . . Max Security . | . . . . Peak Influence 363 | . 235 363 237 Initial 152 | . . 72 152 Average 132 | . 130 174 160 Influence Increases 1038 | . 522 381 135 Destroy 0b10 Robot/C 440 | . 320 20 100 Destroy 0b10 Robot/NC 75 | . 75 . . Destroy Leader 118 | . 88 10 20 Successful Hack 28 | . 22 6 . Destroy Structure 2 | . 2 . . Partial Spotted 30 | . . 30 . Lose Combat Pursuer 345 | . 15 315 15 Influence Decreases 811 | . 349 191 271 Entered New Map 312 | . . 101 211 Time Decay 479 | . 349 90 40 Lost Part 10 | . . . 10 Lost Ally 10 | . . . 10 Squads Dispatched 6 | . 5 1 . Investigation 4 | . 3 1 . Extermination . | . . . . Reinforcement 2 | . 2 . . Assault . | . . . . Garrison . | . . . . Intercept . | . . . . Searches Triggered . | . . . . Construction Impeded . | . . . . Haulers Reinforced . | . . . . Active Scanning Responses . | . . . . Cargo Convoy Interrupts . | . . . . Stealth | -11 -10 -9 -8 --------- Run | Yrd Mat Mat Mat Distress Signals . | . . . . Communications Jammed . | . . . . Distress Signals . | . . . . Times Spotted 68 | . 25 34 9 Peak Tracking Total 16 | . 4 16 6 Tactical Retreats 8 | . 1 6 1 Traps | -11 -10 -9 -8 ------- Run | Yrd Mat Mat Mat Traps Triggered 3 | . 3 . . Indirectly . | . . . . Trap Hack Attempts . | . . . . Triggered . | . . . . Disarmed . | . . . . Reprogrammed . | . . . . Reused . | . . . . Traps Extracted . | . . . . Installed . | . . . . Triggered . | . . . . Machines | -11 -10 -9 -8 ---------- Run | Yrd Mat Mat Mat Machines Disabled . | . . . . Max in Single Turn . | . . . . Machines Repaired . | . . . . Machines Dismantled . | . . . . Machines Sabotaged . | . . . . Overloaded Fab Kills . | . . . . Hacking | -11 -10 -9 -8 --------- Run | Yrd Mat Mat Mat Machines Accessed 15 | . 8 6 1 Terminals 12 | . 5 6 1 Fabricators . | . . . . Repair Stations 1 | . 1 . . Recycling Units 2 | . 2 . . Scanalyzers . | . . . . Garrison Access . | . . . . Total Hacks 38 | . 19 16 3 Successful 19 | . 13 5 1 Failed 19 | . 6 11 2 Catastrophic 1 | . . 1 . Database Lockouts . | . . . . Manual 30 | . 12 15 3 Terminals 34 | . 15 16 3 Fabricators . | . . . . Repair Stations 2 | . 2 . . Recycling Units 2 | . 2 . . Scanalyzers . | . . . . Garrison Access . | . . . . Terminal Hacks 5 | . 3 2 . Prototype ID Bank 1 | . 1 . . Terminal Index 2 | . 1 1 . Scanalyzer Index 1 | . 1 . . Alert Level 1 | . . 1 . Fabricator Hacks . | . . . . Repair Station Hacks 2 | . 2 . . Scan Component 1 | . 1 . . Repair 1 | . 1 . . Recycling Unit Hacks 2 | . 2 . . Report Inventory 2 | . 2 . . Scanalyzer . | . . . . Garrison Access Hacks . | . . . . Unauthorized Hacks 10 | . 6 3 1 Terminals 10 | . 6 3 1 Assimilate 4 | . 2 1 1 Botnet 4 | . 3 1 . Operators 2 | . 1 1 . Fabricators . | . . . . Repair Stations . | . . . . Recycling Units . | . . . . Scanalyzers . | . . . . Garrison Access . | . . . . Data Cores Recovered . | . . . . Used . | . . . . Hacking Detections 9 | . 4 4 1 Full Trace Events 6 | . 3 3 . Feedback Events 1 | . . 1 . Corruption 1 | . . 1 . Feedback Blocked . | . . . . Robot Schematics Acquired . | . . . . Robots Built . | . . . . Authchips . | . . . . Time . | . . . . Total Robot Build Rating . | . . . . Part Schematics Acquired . | . . . . Parts Built . | . . . . Authchips . | . . . . Time . | . . . . Total Part Build Rating . | . . . . Part Studies Acquired . | . . . . Parts Repaired 1 | . 1 . . Time 26 | . 26 . . Parts Recycled . | . . . . Recycled Matter . | . . . . Retrieved Matter . | . . . . Retrieved Components . | . . . . Parts Scanalyzed . | . . . . Part Schematics Acquired . | . . . . Parts Damaged . | . . . . Bothacking | -11 -10 -9 -8 ------------ Run | Yrd Mat Mat Mat Used RIF Installer . | . . . . Robots Hacked 1 | . 1 . . Non-combat 1 | . 1 . . Combat . | . . . . Robot Hacks Applied 2 | . 2 . . parse_system 1 | . 1 . . no_distress 1 | . 1 . . Relay Couplers Released . | . . . . Fabnet Peak Effective % . | . . . . Robots Rewired . | . . . . Allies Hacked . | . . . . Hacks Repelled . | . . . . Allies | -11 -10 -9 -8 -------- Run | Yrd Mat Mat Mat Total Allies 1 | . . . 1 Largest Group 1 | . . . 1 Highest-Rated Group 10 | . . . 10 Highest-Rated Ally 10 | . . . 10 Total Orders . | . . . . Ally Attacks . | . . . . Total Damage . | . . . . Kills . | . . . . Allies Corrupted . | . . . . Allies Melted . | . . . . Intel | -11 -10 -9 -8 ------- Run | Yrd Mat Mat Mat Active Infowar (turns) 400 | . 108 195 97 Structural 400 | . 108 195 97 Robot Analysis Total . | . . . . Derelict Logs Recovered . | . . . . Drone Launches . | . . . . Drone Recoveries . | . . . . Exploration | -11 -10 -9 -8 ------------- Run | Yrd Mat Mat Mat Turns Passed 1536 | 68 1176 195 97 Spaces Moved 2239 | 64 1606 438 131 Core 15 | 15 . . . Treads 4 | . 4 . . Legs . | . . . . Wheels 643 | 49 594 . . Hover . | . . . . Flight 1577 | . 1008 438 131 Fastest Speed 34 | 50 34 34 34 Average Speed 47 | 72 51 34 34 Slowest Speed 160 | 80 160 34 37 Overloaded Moves . | . . . . Propulsion Burnouts . | . . . . Robots Hopped 20 | . 5 15 . Potential Cave-ins . | . . . . Cave-ins Triggered . | . . . . Exploration Rate (%) 46 | 5 98 69 14 Regions Visited 3 Branch Regions . Pre-discovered Areas . | . . . . Known Exits Taken 2 | . 1 1 . Unknown Exits Taken 1 | 1 . . . Scrap Searched . | . . . . Spaces Dug . | . . . . Terrain Destroyed . | . . . . Melee . | . . . . Projectile . | . . . . AOE . | . . . . Terrain Rammed . | . . . . Walls Destroyed . | . . . . Machines Disabled . | . . . . Actions | -11 -10 -9 -8 --------- Run | Yrd Mat Mat Mat Total 2488 | 82 1787 462 157 Wait 112 | 13 56 36 7 Move 2199 | 63 1596 409 131 Hop 17 | . 4 13 . Pick Up 1 | . 1 . . Fast Attach 16 | 6 9 . 1 Attach . | . . . . Detach . | . . . . Swap 4 | . 3 . 1 Drop 6 | . 6 . . Fire 109 | . 88 4 17 Melee 3 | . 3 . . Ram . | . . . . Kick . | . . . . Crush . | . . . . Escape Stasis . | . . . . Rewire . | . . . . Trap . | . . . . Miscellaneous 21 | . 21 . . Route ------- -11/Scrapyard -10/Materials (discovered 6 exits: *Mat x3 / *Min x2 / [*Sub]) -9/Materials (discovered 2 exits: *Mat / [*Min]) -8/Materials History --------- Turn | Location | Event 8 | -11/Scrapyard | Discovered new exit (range 15) 13 | -11/Scrapyard | Upgraded with Propulsion slot (x1) 13 | -11/Scrapyard | Upgraded with Utility slot (x1) 13 | -11/Scrapyard | Upgraded with Weapon slot (x2) 69 | -11/Scrapyard | Entered Materials 222 | -10/Materials | Discovered new exit (range 8) 262 | -10/Materials | Discovered new exit (range 7) 313 | -10/Materials | Build established: Gunner 321 | -10/Materials | Discovered new exit (range 14) 346 | -10/Materials | Discovered new exit (range 5) 387 | -10/Materials | Discovered new exit (range 15) 545 | -10/Materials | Reached level 2 566 | -10/Materials | Destroyed 7 combat bots 720 | -10/Materials | Upgraded with Propulsion slot (x1) 859 | -10/Materials | Identified exit to Mines 983 | -10/Materials | Identified exit to Materials 1006 | -10/Materials | Build established: Scavenger-Gunner 1084 | -10/Materials | Repaired Flight Unit 1167 | -10/Materials | Discovered exit to Materials (range 14) 1245 | -10/Materials | Entered another Materials area 1247 | -9/Materials | Reached level 3 1310 | -9/Materials | Build established: Scavenger-Mutant 1322 | -9/Materials | Discovered new exit (range 7) 1354 | -9/Materials | Core integrity fell below 50% 1435 | -9/Materials | Discovered new exit (range 16) 1440 | -9/Materials | Identified exit to Materials 1440 | -9/Materials | Entered another Materials area 1441 | -8/Materials | Core integrity fell below 50% 1442 | -8/Materials | Reached level 4 1462 | -8/Materials | Upgraded with Utility slot (x2) 1516 | -8/Materials | Core integrity fell below 20% 1537 | -8/Materials | Destroyed by G-47 Trooper with Particle Gun Last Messages --------------- 01510_ S-10 Pest destroyed. 01510_ Switching to secondary target: G-47 Trooper. 01511_ K-01 Serf collects debris. 01513_ S-10 Pest destroyed. 01513_ Switching to secondary target: G-47 Trooper. 01514_ Technician 3a destroyed. 01514_ K-01 Serf collects debris. 01516_ R-06 Scavenger collects Datajack. 01519_ K-01 Serf collects debris. 01520_ R-06 Scavenger collects Lgt. Ion Engine. 01521_ K-01 Serf collects debris. 01521_ S-10 Pest destroyed. 01521_ Switching to secondary target: G-47 Trooper. 01524_ R-06 Scavenger collects Hover Unit. 01525_ K-01 Serf collects debris. 01526_ M-13 Machinist repairs G-47 Trooper. 01526_ S-10 Pest destroyed. 01526_ Switching to secondary target: G-47 Trooper. 01527_ Flight Unit destroyed. 01528_ R-06 Scavenger collects Flight Unit. Map ----- +----------------------------------------------------+ | ?????????????????????????????????????????????????? | | ?????????????????????????????????????????????????? | | ?????????????????????????????????????????????????? | | ?????????????????????????????????????????????????? | | ?????????????????????????????????????????????????? | | ?????????????????????????????????????????????????? | | ?????????????????????????????????????????????????? | | ?????????????????????????????????????????????????? | | ?????????????????????????????????????????????????? | | ?????????????????????????????????????????????????? | | ?????????????????????? ???????????????????????? | | ??????????????????????+###???????????????????????? | | ?????????????????????? ???????????????????????? | | ?? ?????????????????? ????a???????????????????? | | ??????????????? ???????????????????? | | # ?????????????? ####+#####???????????????????? | | # ????????????? ## k ##???????????????????? | | # ??????????? ## T ##???????????????????? | | # ?######### ## g ##???????????????????? | | ## ########## ##[ ##???????????????????? | | ## ### # ## !m #### ######??????????? | | ## ### # # [!!g ####+######??????????? | | ## ### """# ##%!! # ##??????????? | | ## ### """# ##== # ##??????????? | | ## ### """# ## ! # ##??????????? | | ## ### # k ## @ # # ??????????? | | ## ######/### #####/### # ??????????? | | %*## # ??????????? | | % [%%+r # ??????????? | | """ [## # ??????????? | | """ """ """ """ "R"% ## # ??????????? | | """ """ """ """ " "=%#######+### ??????????? | | """ """ """ """ =%[ ????????? | | u ????????? | | ????????? | | #################+################### ????????? | | ############## ############### ??????????? | | ###??????????????????????????????????????????????? | | ##??????????????????????????????????????????????? | | ##??????????????????????????????????????????????? | | ##??????????????????????????????????????????????? | | ##??????????????????????????????????????????????? | | ##??????????????????????????????????????????????? | | ##??????????????????????????????????????????????? | | ###??????????????????????????????????????????????? | | ###??????????????????????????????????????????????? | | ?????????????????????????????????????????????????? | | ?????????????????????????????????????????????????? | | ?????????????????????????????????????????????????? | | ?????????????????????????????????????????????????? | +----------------------------------------------------+ Best States ------------- Heat Dissipation 25 Energy Generation 10 Energy Capacity 250 Matter Stores 300 Matter Capacity 300 Sight Range 17 Robot Scan Range 14 Terrain Scan Density 10 Evasion (%) 63 Targeting Accuracy 6 Recoil Reduction 1 Offensive Hacking 20 Item Schematics ----------------- None Robot Schematics ------------------ None Fabricated ------------ Nothing Repaired ---------- Flight Unit | 20% | -10/Materials Studied --------- None Alien Tech Used ----------------- None Achievements -------------- None Challenges ------------ None RPGLIKE | -11 -10 -9 -8 --------- Run | Yrd Mat Mat Mat Levels Raised 3 | . 1 1 1 XP Earned 8850 | 3000 2070 1680 2100 XP Spent 7485 | 2650 1850 160 2825 Upgrades 23 | 6 4 4 9 Propulsion Slot 2 | 1 1 . . Utility Slot 3 | 1 . . 2 Weapon Slot 2 | 2 . . . Core Integrity 4 | . . 4 . Mass Support 2 | 1 1 . . Inventory Capacity 1 | 1 . . . Sight Range 1 | . . . 1 Sensor Range 7 | . 1 . 6 Ranged Accuracy 1 | . 1 . . Protomatter Created 253 | . 240 . 13 Integrity Restored 368 | . 368 . . Core 318 | . 318 . . Parts 50 | . 50 . . Protomatter Decayed 54 | . 54 . . Game ------ Seed TripodRestorationProcessor Manual? 0 Play Time 00:51:48 Cumulative 113.0 hours Start 2025.11.02 @ 13:55:11 End 2025.11.02 @ 15:08:12 Sessions 1 Manual Loads 0 Difficulty Rogue Special Mode Winter2019/RPGLIKE Game No. 44 Rogue 44 Adventurer 0 Explorer 0 Win Type - Total 4 Types 1/0/1/2/0/0/0/0/0/0 Lore% 46 Gallery% 44 Achievement% 41 Wizard Run 0 Options --------- Layout 2 ASCII 0 Keyboard 0 Movement Mouse Keybinds 1 Fullscreen 2 Font 20/X11 Map View 64x51 Zoom Use 0% Tactical HUD 1 Map Filters NONE Filters NONE Steam 1 RUN: a5f70ce1-bd87-49d9-b8eb-de2da20d1d26